bitfinex/quotes_BTCUSD_20250408
["timestamp","ask_amount","ask_price","bid_price","bid_amount"]
[1744124517962,0.34,78740.0,78738.0,0.266706]
[1744124518170,0.34,78740.0,78736.0,0.0127]
[1744124518381,0.34,78740.0,78739.0,0.266703]
[1744124518587,0.00058797,78744.0,78743.0,0.25399]
[1744124518793,0.00058797,78744.0,78742.0,0.253992]
[1744124519005,0.00058797,78744.0,78743.0,0.25399]
[1744124519420,0.00058797,78744.0,78739.0,0.38026164]
[1744124519603,0.00058797,78744.0,78743.0,0.25399]
[1744124520073,0.00358797,78744.0,78742.0,0.253993]
[1744124520284,0.00358797,78744.0,78743.0,0.25399]
[1744124520494,0.00358797,78744.0,78742.0,0.253993]
[1744124520704,0.00058797,78744.0,78743.0,0.266689]
[1744124520889,0.00058797,78744.0,78743.0,0.39294764]
[1744124521129,0.00058797,78744.0,78743.0,0.44044764]
[1744124521347,9.7e-07,78752.0,78749.0,0.253971]
[1744124521570,0.012693,78779.0,78773.0,0.012694]
[1744124521786,0.67786929,78780.0,78770.0,0.266596]
[1744124521787,0.67786929,78780.0,78772.0,0.253896]
[1744124521992,0.012694,78777.0,78765.0,0.012695]
[1744124522200,0.34,78772.0,78770.0,0.2539]
[1744124522414,0.00012602,78779.0,78775.0,0.253884]
[1744124522631,0.00012602,78779.0,78778.0,0.26657]
[1744124524006,0.00112602,78779.0,78778.0,0.39382864]
[1744124524658,0.00112602,78779.0,78778.0,0.001]
[1744124524862,0.00112602,78779.0,78778.0,0.013693]
[1744124525511,0.49528466,78779.0,78738.0,0.0475]
[1744124525738,0.34,78750.0,78749.0,0.25397]
[1744124525958,0.51888,78759.0,78755.0,0.012697]
[1744124526204,0.253949,78756.0,78750.0,0.012698]
[1744124526412,0.253949,78756.0,78750.0,0.266664]
[1744124526634,0.34,78753.0,78749.0,0.253969]
[1744124526856,0.191576,78759.0,78738.0,0.17375864]
[1744124526857,0.253975,78748.0,78742.0,0.266693]
[1744124527114,0.266668,78750.0,78749.0,0.007]
[1744124527115,0.34,78750.0,78749.0,0.007]
[1744124527336,0.93183429,78752.0,78746.0,0.25398]
[1744124527548,0.94453229,78752.0,78750.0,0.005]
[1744124527758,0.266663,78751.0,78750.0,0.012]
[1744124527962,0.266663,78751.0,78750.0,0.005]
[1744124528178,0.253962,78752.0,78750.0,0.005]
[1744124528610,0.012698,78751.0,78750.0,0.005]
[1744124528814,0.15349749,78751.0,78750.0,0.005]
[1744124529255,0.00012597,78753.0,78750.0,0.012698]
[1744124529468,0.35282297,78753.0,78746.0,0.25398]
[1744124529696,0.25408597,78753.0,78747.0,0.266675]
[1744124529903,2.248e-05,78753.0,78752.0,0.266659]
[1744124531005,2.248e-05,78753.0,78752.0,0.39291764]
[1744124532698,0.67786929,78762.0,78760.0,0.266631]
[1744124532902,0.266607,78768.0,78761.0,0.266628]
[1744124533136,0.253907,78769.0,78761.0,0.012696]
[1744124533338,0.253907,78769.0,78765.0,0.253919]
[1744124533552,0.253906,78769.0,78764.0,0.253923]
[1744124533764,0.012696,78763.0,78753.0,0.253958]
[1744124533980,0.266629,78761.0,78760.0,0.004]
[1744124534189,0.253929,78762.0,78760.0,0.004]
[1744124534456,0.253946,78757.0,78751.0,0.253964]
[1744124534659,0.012697,78758.0,78751.0,0.38022164]
[1744124534901,0.012697,78754.0,78746.0,0.012699]
[1744124535116,0.012697,78757.0,78749.0,0.266668]
[1744124535323,0.67786929,78761.0,78751.0,0.012698]
[1744124535603,0.012697,78756.0,78745.0,0.04762597]
[1744124535836,0.253968,78750.0,78745.0,0.00012597]
[1744124536055,0.253981,78746.0,78745.0,0.00012597]
[1744124536883,0.253981,78746.0,78745.0,0.00712597]
[1744124537071,0.380878,78766.0,78745.0,0.09412597]
[1744124537398,0.02,78791.0,78784.0,0.28109085]
[1744124537602,0.02,78791.0,78784.0,0.26655]
[1744124538915,0.0002935,78785.0,78784.0,0.39280864]
[1744124539118,0.0002935,78785.0,78783.0,0.253861]
[1744124539119,0.0002935,78785.0,78783.0,0.25386]
[1744124539291,0.0002935,78785.0,78784.0,0.012692]
[1744124539691,0.0002935,78785.0,78784.0,0.021692]
[1744124539959,0.0002935,78785.0,78784.0,0.020692]
[1744124540239,0.0002935,78785.0,78774.0,0.012694]
[1744124540443,0.0002935,78785.0,78783.0,0.009]
[1744124540616,0.0002935,78785.0,78778.0,0.012693]
[1744124540838,0.17872,78784.0,78782.0,0.253864]
[1744124541036,0.17872,78784.0,78782.0,0.266557]
[1744124541643,0.17872,78784.0,78781.0,0.266557]
[1744124542606,0.2539,78771.0,78761.0,0.253929]
[1744124542848,0.253959,78753.0,78743.0,0.253988]
[1744124543095,0.17868,78752.0,78745.0,0.253981]
[1744124543332,0.17868,78752.0,78746.0,0.253978]
[1744124543580,0.432643,78752.0,78742.0,0.012699]
[1744124543821,0.012699,78746.0,78729.0,0.012701]
[1744124544058,0.012699,78746.0,78730.0,0.254031]
[1744124544059,0.266702,78740.0,78730.0,0.254031]
[1744124544296,0.593986,78745.0,78731.0,0.014701]
[1744124544526,0.12625864,78746.0,78731.0,0.014701]
[1744124544527,0.34,78751.0,78745.0,0.006]
[1744124544773,0.17868,78752.0,78751.0,0.012698]
[1744124545009,0.0471,78779.0,78764.0,0.266619]
[1744124545223,0.17872,78772.0,78764.0,0.266619]
[1744124545468,0.012695,78766.0,78731.0,0.002]
[1744124545699,0.266642,78758.0,78748.0,0.266671]
[1744124545933,0.266642,78758.0,78746.0,0.253978]
[1744124545934,0.34,78754.0,78746.0,0.253978]
[1744124546244,0.34,78754.0,78748.0,0.253972]
[1744124546579,0.34,78754.0,78743.0,0.266686]
[1744124546580,0.253913,78767.0,78754.0,0.012697]
[1744124546809,0.012693,78783.0,78764.0,0.012696]
[1744124547040,0.17872,78786.0,78780.0,0.012693]
[1744124547273,0.02303435,78785.0,78781.0,0.266559]
[1744124547507,0.02303435,78785.0,78784.0,0.012692]
[1744124547732,0.0001676,78785.0,78784.0,0.13895064]
[1744124548192,0.012689,78807.0,78788.0,0.012692]
[1744124548448,0.34,78796.0,78788.0,0.012692]
[1744124548672,0.00012592,78802.0,78796.0,0.01269]
[1744124548881,0.00012592,78802.0,78801.0,0.01269]
[1744124549918,0.00112592,78802.0,78801.0,0.01269]
[1744124551013,0.00012592,78802.0,78801.0,0.01269]
[1744124551707,0.00012592,78802.0,78801.0,0.13894864]
[1744124552370,0.00112592,78802.0,78801.0,0.13894864]
[1744124552842,0.00112592,78802.0,78801.0,0.01269]
[1744124553079,2.2e-07,78815.0,78814.0,0.012688]
[1744124553314,7.2e-07,78823.0,78822.0,0.266422]
[1744124553523,7.2e-07,78823.0,78822.0,0.39268064]
[1744124555294,7.2e-07,78823.0,78822.0,0.39768064]
[1744124555650,7.2e-07,78823.0,78822.0,0.39268064]
[1744124556067,7.2e-07,78823.0,78822.0,0.284422]
[1744124556789,7.2e-07,78823.0,78822.0,0.274422]
[1744124557215,7.2e-07,78823.0,78822.0,0.40068064]
[1744124558050,7.2e-07,78823.0,78822.0,0.82108064]
[1744124558200,7.2e-07,78823.0,78822.0,0.83562149]
[1744124558424,0.0001674,78845.0,78838.0,0.266368]
[1744124558633,0.00241976,78839.0,78838.0,0.98562664]
[1744124559082,7.6e-07,78839.0,78838.0,1.04626749]
[1744124559300,8.6e-07,78855.0,78854.0,0.266314]
[1744124559503,8.6e-07,78855.0,78854.0,0.39257264]
[1744124559718,0.00012671,78855.0,78854.0,0.39257264]
[1744124560276,0.00012671,78855.0,78854.0,0.80697264]
[1744124561728,0.00012671,78855.0,78854.0,0.81097264]
[1744124563184,0.00012671,78855.0,78854.0,0.4184]
[1744124563430,0.00012671,78855.0,78854.0,0.684714]
[1744124563665,0.00012671,78855.0,78854.0,0.4184]
[1744124564363,0.00012671,78855.0,78854.0,0.004]
[1744124564549,0.00012671,78855.0,78854.0,0.016681]
[1744124564850,0.35280771,78855.0,78854.0,0.004]
[1744124565525,0.34,78853.0,78845.0,0.012683]
[1744124565724,0.593637,78853.0,78847.0,0.253654]
[1744124565926,0.593637,78853.0,78844.0,0.253665]
[1744124565927,0.34,78850.0,78844.0,0.253665]
[1744124566134,0.253657,78847.0,78840.0,0.266358]
[1744124566343,0.012683,78845.0,78838.0,0.253683]
[1744124566557,0.012682,78847.0,78838.0,0.012684]
[1744124566761,0.253689,78837.0,78831.0,0.253706]
[1744124566940,0.253676,78841.0,78831.0,0.266389]
[1744124567145,0.34,78842.0,78836.0,0.25369]
[1744124567371,0.34,78842.0,78835.0,0.012684]
[1744124567372,0.012685,78829.0,78814.0,0.012688]
[1744124567573,0.012686,78822.0,78814.0,0.253759]
[1744124567752,0.012687,78815.0,78807.0,0.012689]
[1744124567962,0.253741,78821.0,78813.0,0.266453]
[1744124568164,0.253732,78824.0,78813.0,0.266453]
[1744124568165,0.34,78820.0,78818.0,0.253747]
[1744124568500,0.593743,78820.0,78805.0,0.253788]
[1744124568708,0.34,78820.0,78815.0,0.012687]
[1744124568904,0.34,78820.0,78818.0,0.25416776]
[1744124569115,0.34,78820.0,78818.0,0.00041976]
[1744124569343,0.34,78823.0,78818.0,0.00441976]
[1744124569543,0.253743,78820.0,78818.0,0.00741976]
[1744124569738,0.253736,78822.0,78818.0,0.00741976]
[1744124569944,0.012687,78819.0,78818.0,0.00741976]
[1744124570188,0.012687,78819.0,78818.0,0.00341976]
[1744124570407,0.34,78821.0,78818.0,0.00341976]
[1744124570609,0.266431,78820.0,78818.0,0.00341976]
[1744124570758,0.012687,78819.0,78818.0,0.00041976]
[1744124571177,0.253745,78819.0,78818.0,0.00241976]
[1744124571413,0.606432,78819.0,78818.0,0.00241976]
[1744124571662,0.606432,78819.0,78818.0,0.00041976]
[1744124572387,0.74723149,78819.0,78818.0,0.00041976]
[1744124572898,0.74723149,78819.0,78818.0,0.00241976]
[1744124573310,0.34,78819.0,78818.0,0.00241976]
[1744124573545,0.352687,78819.0,78818.0,0.00041976]
[1744124573745,0.47894564,78819.0,78818.0,0.00041976]
[1744124574089,0.49348649,78819.0,78818.0,0.00041976]
[1744124574646,0.47894564,78819.0,78818.0,0.00041976]
[1744124574859,0.70640277,78819.0,78818.0,0.00041976]
[1744124575087,0.70640277,78819.0,78818.0,0.00141976]
[1744124575437,0.70640277,78819.0,78818.0,0.00041976]
[1744124575851,0.70640277,78819.0,78818.0,0.00141976]
[1744124576602,0.71550932,78819.0,78818.0,0.00141976]
[1744124576835,0.89398932,78819.0,78818.0,0.00141976]
[1744124577214,1.02524477,78819.0,78818.0,7.6e-07]
[1744124577415,0.606523,78792.0,78791.0,0.002]
[1744124577545,0.34,78792.0,78791.0,0.002]
[1744124577744,0.34,78792.0,78791.0,0.00212592]
[1744124580173,0.593832,78792.0,78791.0,0.00212592]
[1744124580388,0.002,78792.0,78791.0,0.012691]
[1744124580673,0.002,78792.0,78786.0,0.266544]
[1744124580878,0.00012578,78792.0,78791.0,0.39278564]
[1744124581285,0.00012578,78792.0,78791.0,0.39378564]
[1744124581640,7.8e-07,78792.0,78791.0,0.80718564]
[1744124581870,7.8e-07,78792.0,78791.0,0.85398564]
[1744124582083,7.8e-07,78792.0,78791.0,0.85798564]
[1744124582294,7.8e-07,78792.0,78791.0,0.81118564]
[1744124582512,7.8e-07,78792.0,78791.0,0.004]
[1744124582717,7.8e-07,78792.0,78791.0,0.270527]
[1744124583257,7.8e-07,78792.0,78791.0,0.267527]
[1744124583460,7.8e-07,78792.0,78791.0,0.266527]
[1744124583689,0.00100078,78792.0,78791.0,0.275527]
[1744124583894,0.00100078,78792.0,78791.0,0.279527]
[1744124584074,0.59383278,78792.0,78791.0,0.004]
[1744124584552,0.34000078,78792.0,78791.0,0.007]
[1744124584759,0.60652378,78792.0,78791.0,0.007]
[1744124585872,0.253832,78792.0,78791.0,0.007]
[1744124586249,0.253832,78792.0,78791.0,0.004]
[1744124586449,0.253903,78770.0,78769.0,0.0003352]
[1744124586682,0.266598,78770.0,78769.0,0.0003352]
[1744124587818,0.266598,78770.0,78769.0,2e-07]
[1744124587819,0.39285664,78770.0,78769.0,2e-07]
[1744124588100,0.96031377,78770.0,78769.0,0.0030002]
[1744124588295,0.96031377,78770.0,78769.0,2e-07]
[1744124589581,0.9940372,78770.0,78769.0,2e-07]
[1744124589809,0.9970372,78770.0,78769.0,2e-07]
[1744124590049,0.9859689,78770.0,78769.0,2e-07]
[1744124590279,0.9909689,78770.0,78769.0,2e-07]
[1744124590487,0.9476092,78770.0,78769.0,2e-07]
[1744124590745,0.9426092,78770.0,78769.0,2e-07]
[1744124591094,0.9486092,78770.0,78769.0,2e-07]
[1744124592089,0.93501996,78770.0,78769.0,2e-07]
[1744124592440,0.92595407,78770.0,78769.0,2e-07]
[1744124594762,1.05220952,78770.0,78769.0,2e-07]
[1744124595031,0.92595407,78770.0,78769.0,2e-07]
[1744124595144,0.93095407,78770.0,78769.0,2e-07]
[1744124595346,0.606625,78762.0,78761.0,2e-07]
[1744124595575,0.606625,78762.0,78737.0,0.000335]
[1744124595576,0.62124085,78740.0,78737.0,0.000335]
[1744124595803,0.92605949,78740.0,78737.0,0.000335]
[1744124596671,0.92605949,78740.0,78739.0,0.00046118]
[1744124597054,0.92905949,78740.0,78739.0,0.00146118]
[1744124597508,0.9351362,78740.0,78739.0,1.8e-07]
[1744124597732,0.62124685,78738.0,78737.0,1.8e-07]
[1744124597931,0.74750549,78738.0,78737.0,0.00012615]
[1744124598106,0.7701968,78738.0,78737.0,0.00012615]
[1744124598533,0.99218979,78738.0,78737.0,0.00012615]
[1744124598741,0.99217093,78738.0,78737.0,0.00012615]
[1744124598938,0.99217093,78738.0,78737.0,1.5e-07]
[1744124599119,0.606727,78732.0,78731.0,1.5e-07]
[1744124599329,0.74752649,78732.0,78731.0,1.5e-07]
[1744124599472,0.606757,78723.0,78722.0,6e-07]
[1744124599690,1.13903277,78723.0,78722.0,6e-07]
[1744124600103,1.17077076,78723.0,78722.0,6e-07]
[1744124600717,1.16170522,78723.0,78722.0,6e-07]
[1744124600922,1.14716437,78723.0,78722.0,6e-07]
[1744124601359,1.14716437,78723.0,78722.0,0.0010006]
[1744124601894,1.12449192,78723.0,78722.0,0.0010006]
[1744124602092,1.13903277,78723.0,78722.0,0.0010006]
[1744124602423,1.14003277,78723.0,78722.0,0.0010006]
[1744124602623,1.14007277,78723.0,78722.0,0.0010006]
[1744124602852,1.13907277,78723.0,78722.0,0.0010006]
[1744124603052,1.13907277,78723.0,78722.0,6e-07]
[1744124603252,1.15107277,78723.0,78722.0,6e-07]
[1744124603671,0.22491628,78723.0,78722.0,0.0127026]
[1744124603878,0.65757128,78723.0,78722.0,6e-07]
[1744124604074,0.99757128,78723.0,78722.0,6e-07]
[1744124604248,0.65757128,78723.0,78722.0,6e-07]
[1744124604477,0.56491628,78723.0,78722.0,6e-07]
[1744124604657,0.432682,78727.0,78722.0,0.0127026]
[1744124604833,0.254045,78726.0,78722.0,6e-07]
[1744124605034,0.34,78725.0,78722.0,0.2540566]
[1744124605239,0.34,78725.0,78722.0,6e-07]
[1744124605484,0.34,78725.0,78724.0,0.254052]
[1744124605875,0.34,78725.0,78723.0,0.266755]
[1744124606298,0.34,78726.0,78724.0,0.254052]
[1744124606532,0.34,78726.0,78725.0,0.26675]
[1744124606800,0.594047,78726.0,78722.0,0.0020006]
[1744124607011,0.34,78726.0,78724.0,0.254051]
[1744124607446,0.34,78728.0,78726.0,0.254045]
[1744124607648,0.34,78728.0,78723.0,0.013702]
[1744124607802,0.34,78728.0,78725.0,0.254048]
[1744124607986,0.594039,78728.0,78725.0,0.254048]
[1744124608194,0.34,78728.0,78727.0,0.266744]
[1744124608389,0.34,78728.0,78726.0,0.254045]
[1744124608848,0.34,78728.0,78725.0,0.254048]
[1744124609044,0.34,78729.0,78728.0,0.26674]
[1744124609450,0.67614505,78760.0,78759.0,0.253939]
[1744124609681,0.17864,78760.0,78756.0,0.012697]
[1744124609868,0.17864,78760.0,78758.0,0.012697]
[1744124610078,0.17864,78760.0,78759.0,0.266635]
[1744124610285,0.17864,78776.0,78775.0,0.266581]
[1744124610492,0.17864,78776.0,78774.0,0.25389]
[1744124610691,0.00012588,78765.0,78755.0,0.012697]
[1744124610845,0.00012588,78765.0,78764.0,0.012696]
[1744124611265,0.00012588,78765.0,78764.0,0.13895464]
[1744124611729,0.00012588,78765.0,78764.0,0.13769264]
[1744124613056,0.00012588,78765.0,78764.0,0.14023165]
[1744124613266,0.00212588,78765.0,78764.0,0.14923165]
[1744124613488,0.00112588,78765.0,78764.0,0.14023165]
[1744124613931,0.00112588,78765.0,78764.0,0.14723165]
[1744124614161,0.00212588,78765.0,78764.0,0.14823145]
[1744124614390,0.00212588,78765.0,78764.0,0.14569264]
[1744124615135,0.00112588,78765.0,78764.0,0.14123145]
[1744124615365,0.00112588,78765.0,78764.0,0.19219264]
[1744124615366,8.8e-07,78765.0,78764.0,0.19219264]
[1744124615593,0.0001677,78772.0,78771.0,0.266595]
[1744124615828,0.0001677,78772.0,78771.0,0.39285364]
[1744124616760,0.0011677,78772.0,78771.0,0.39885364]
[1744124616963,0.0021677,78772.0,78771.0,0.012]
[1744124617182,0.0021677,78772.0,78771.0,0.024695]
[1744124618795,0.0148617,78772.0,78771.0,0.012]
[1744124619004,0.6087587,78772.0,78771.0,0.012]
[1744124619215,0.74955819,78772.0,78771.0,0.012]
[1744124619856,0.34,78757.0,78754.0,0.253955]
[1744124620005,0.34,78757.0,78754.0,0.00012588]
[1744124620414,0.352697,78755.0,78754.0,0.00012588]
[1744124620965,0.606649,78755.0,78754.0,0.00012588]
[1744124621155,0.606649,78755.0,78754.0,0.26677788]
[1744124621156,0.34,78755.0,78754.0,0.26677788]
[1744124621436,0.253938,78760.0,78754.0,0.01282288]
[1744124621610,0.34,78758.0,78754.0,0.25407788]
[1744124621748,0.34,78758.0,78754.0,0.01282288]
[1744124621950,0.34,78758.0,78754.0,0.00012588]
[1744124622159,0.34,78756.0,78754.0,0.00012588]
[1744124622352,0.253952,78757.0,78754.0,0.00012588]
[1744124622353,0.606649,78755.0,78754.0,0.00412588]
[1744124622585,0.606649,78755.0,78754.0,0.00012588]
[1744124623005,0.606649,78755.0,78754.0,0.00712588]
[1744124623227,0.606649,78755.0,78754.0,0.00012588]
[1744124623459,0.593952,78755.0,78754.0,0.00012588]
[1744124623903,0.606649,78755.0,78754.0,0.00012588]
[1744124624108,0.73290764,78755.0,78754.0,0.00012588]
[1744124624343,0.92600849,78755.0,78754.0,0.00012588]
[1744124624547,0.92600849,78755.0,78754.0,0.00112588]
[1744124624897,0.80799755,78755.0,78754.0,0.00112588]
[1744124625321,0.80799755,78755.0,78754.0,0.00012588]
[1744124625612,0.772512,78755.0,78754.0,0.00012588]
[1744124625844,0.785512,78755.0,78754.0,0.00012588]
[1744124626020,0.008,78755.0,78754.0,0.26677788]
[1744124626441,0.012,78755.0,78754.0,0.26677788]
[1744124626823,0.004,78755.0,78754.0,0.26677788]
[1744124627648,0.004,78755.0,78754.0,0.25408088]
[1744124627852,0.610649,78755.0,78754.0,0.00012588]
[1744124628066,0.510649,78755.0,78754.0,0.00012588]
[1744124628643,0.497952,78755.0,78754.0,0.00112588]
[1744124628842,0.34,78755.0,78754.0,0.00112588]
[1744124629045,0.34,78755.0,78754.0,0.26777788]
[1744124629278,0.17844,78769.0,78761.0,0.012696]
[1744124629279,0.34,78768.0,78761.0,0.012696]
[1744124629608,0.34,78766.0,78762.0,0.253928]
[1744124629791,0.593917,78766.0,78762.0,0.253928]
[1744124630303,0.0001677,78772.0,78765.0,0.012695]
[1744124630588,0.012695,78770.0,78758.0,0.012697]
[1744124630789,0.352695,78770.0,78764.0,0.253922]
[1744124630993,0.593903,78770.0,78763.0,0.253925]
[1744124631151,0.34,78763.0,78755.0,0.012697]
[1744124631492,0.34,78761.0,78759.0,0.253936]
[1744124631724,0.34,78761.0,78760.0,0.253936]
[1744124631901,0.352696,78761.0,78755.0,0.012697]
[1744124632098,0.34,78761.0,78760.0,0.253936]
[1744124632333,0.34,78762.0,78760.0,0.253936]
[1744124632708,0.593932,78762.0,78758.0,0.253942]
[1744124632913,0.593932,78762.0,78759.0,0.255938]
[1744124633112,0.593932,78762.0,78759.0,0.253938]
[1744124633310,0.253933,78761.0,78757.0,0.253945]
[1744124633533,0.34,78755.0,78754.0,0.26677788]
[1744124634504,0.34,78759.0,78756.0,0.253946]
[1744124634742,0.34,78759.0,78754.0,0.00012588]
[1744124634970,0.266648,78757.0,78754.0,0.00012588]
[1744124635189,0.352696,78759.0,78754.0,0.01282288]
[1744124635190,0.34,78759.0,78754.0,0.01282288]
[1744124635429,0.34,78759.0,78758.0,0.266639]
[1744124635916,0.253945,78757.0,78756.0,0.001]
[1744124636275,0.34,78755.0,78754.0,0.00412588]
[1744124636476,0.34,78755.0,78754.0,0.00012588]
[1744124636679,0.606649,78755.0,78754.0,0.00012588]
[1744124636845,0.593952,78755.0,78754.0,0.00012588]
[1744124637249,0.34,78756.0,78754.0,0.00012588]
[1744124637931,0.59395,78756.0,78754.0,0.00012588]
[1744124638144,0.266649,78755.0,78754.0,0.00012588]
[1744124638571,0.253952,78755.0,78754.0,0.00012588]
[1744124639028,0.266649,78755.0,78754.0,0.00412588]
[1744124639476,0.266649,78755.0,78754.0,0.00712588]
[1744124639689,0.266649,78755.0,78754.0,0.00912588]
[1744124640905,0.34,78759.0,78755.0,0.012697]
[1744124641118,0.34,78759.0,78758.0,0.266639]
[1744124642168,0.02035771,81125.0,78758.0,0.266639]
[1744124642169,0.000168,78787.0,78771.0,0.2539]
[1744124642414,0.00918098,78784.0,78771.0,0.266595]
[1744124642649,7e-07,78772.0,78771.0,0.39285364]
[1744124643145,0.000168,78787.0,78786.0,0.266544]
[1744124643423,0.000168,78787.0,78786.0,0.43910264]
[1744124645110,0.001168,78787.0,78786.0,0.44510264]
[1744124645611,0.000168,78787.0,78786.0,0.43910264]
[1744124645845,0.000168,78787.0,78786.0,0.44810264]
[1744124646075,0.000168,78787.0,78786.0,0.44510264]
[1744124646076,0.001168,78787.0,78786.0,0.44510264]
[1744124646577,0.001168,78787.0,78786.0,0.45410264]
[1744124647282,0.001168,78787.0,78786.0,0.327844]
[1744124648002,0.253816,78797.0,78792.0,0.012691]
[1744124648233,0.25394188,78797.0,78792.0,0.012691]
[1744124648452,0.266517,78795.0,78786.0,0.015]
[1744124648682,0.00012588,78797.0,78796.0,0.253819]
[1744124648926,0.00012588,78797.0,78796.0,0.266509]
[1744124649392,0.00012588,78797.0,78795.0,0.253822]
[1744124649648,0.00012588,78797.0,78787.0,0.38010564]
[1744124649649,0.00012588,78797.0,78786.0,0.009]
[1744124649866,0.00012588,78797.0,78794.0,0.253823]
[1744124650333,0.00012588,78797.0,78796.0,0.272509]
[1744124650550,0.00112588,78797.0,78796.0,0.266509]
[1744124651014,0.00012588,78797.0,78796.0,0.266509]
[1744124651468,0.00012588,78797.0,78795.0,0.012691]
[1744124651738,0.00112588,78797.0,78795.0,0.266513]
[1744124651983,0.253819,78796.0,78795.0,0.006]
[1744124652201,0.266509,78796.0,78794.0,0.006]
[1744124652427,0.253832,78792.0,78789.0,0.253842]
[1744124652656,0.00012588,78797.0,78789.0,0.253842]
[1744124652657,0.00012588,78797.0,78796.0,0.259819]
[1744124652880,0.00012588,78797.0,78796.0,0.266509]
[1744124653822,0.00112588,78797.0,78796.0,0.277509]
[1744124654218,0.25494188,78797.0,78796.0,0.011]
[1744124654407,0.73389052,78797.0,78796.0,0.011]
[1744124654653,0.34112588,78797.0,78796.0,0.011]
[1744124654981,0.00112588,78797.0,78796.0,0.264819]
[1744124655186,0.25494188,78797.0,78796.0,0.005]
[1744124655384,0.253823,78795.0,78790.0,0.012691]
[1744124655612,0.253823,78795.0,78791.0,0.253836]
[1744124655819,0.012691,78795.0,78782.0,0.012693]
[1744124655986,0.253826,78794.0,78786.0,0.012692]
[1744124656188,0.253829,78794.0,78790.0,0.253837]
[1744124656403,0.25394288,78797.0,78793.0,0.012691]
[1744124656617,0.253816,78797.0,78796.0,0.002]
[1744124657069,0.253808,78800.0,78796.0,0.002]
[1744124657280,0.253783,78808.0,78803.0,0.266486]
[1744124657482,0.253791,78805.0,78802.0,0.2538]
[1744124657712,0.01269,78799.0,78796.0,0.002]
[1744124657979,0.01269,78799.0,78720.0,0.41529597]
[1744124657980,0.012693,78779.0,78770.0,0.012695]
[1744124658214,0.012693,78779.0,78774.0,0.25389]
[1744124658215,0.253877,78779.0,78774.0,0.25389]
[1744124658465,0.253877,78778.0,78771.0,0.00012588]
[1744124658694,0.266591,78772.0,78771.0,0.00012588]
[1744124658923,0.92559049,78772.0,78771.0,0.00012588]
[1744124659144,0.97229049,78772.0,78771.0,0.00012588]
[1744124659997,0.97629049,78772.0,78771.0,0.00112588]
[1744124660207,0.92959049,78772.0,78771.0,0.00112588]
[1744124660357,0.75139049,78772.0,78771.0,0.00612588]
[1744124660558,0.5222,78772.0,78771.0,0.01882088]
[1744124660818,0.5222,78772.0,78771.0,0.01382088]
[1744124661220,0.5302,78772.0,78771.0,0.01382088]
[1744124661421,0.5302,78772.0,78771.0,0.00112588]
[1744124661604,0.5222,78772.0,78771.0,0.00112588]
[1744124662031,0.5182,78772.0,78771.0,0.01582088]
[1744124662268,0.5212,78772.0,78771.0,0.01582088]
[1744124662671,0.5182,78772.0,78771.0,0.01582088]
[1744124662989,0.5182,78772.0,78771.0,0.01782088]
[1744124663188,0.34,78772.0,78771.0,0.01782088]
[1744124663397,0.34,78772.0,78771.0,0.01482088]
[1744124663538,0.34,78772.0,78771.0,0.00212588]
[1744124663744,0.34,78772.0,78771.0,0.00412588]
[1744124664438,0.34,78772.0,78771.0,0.01682088]
[1744124664613,0.34,78772.0,78771.0,0.00412588]
[1744124664957,0.17824,78773.0,78772.0,0.266591]
[1744124665155,0.51824,78773.0,78772.0,0.266591]
[1744124665361,0.34,78772.0,78771.0,0.00412588]
[1744124665562,0.34,78772.0,78771.0,0.01682088]
[1744124666393,0.34,78776.0,78775.0,0.266581]
[1744124667453,0.34,78776.0,78775.0,0.270581]
[1744124667813,0.34,78776.0,78775.0,0.274581]
[1744124668252,0.34,78784.0,78783.0,0.266554]
[1744124669457,1.00588,78801.0,78799.0,0.25381]
[1744124669663,0.17824,78800.0,78796.0,0.01269]
[1744124669860,0.34,78799.0,78796.0,0.266508]
[1744124670059,0.34,78799.0,78797.0,0.266506]
[1744124670305,1.18412,78801.0,78798.0,0.266501]
[1744124670486,1.52412,78801.0,78800.0,0.01269]
[1744124670698,0.34,78800.0,78799.0,0.255807]
[1744124670899,1.18412,78801.0,78800.0,0.01269]
[1744124671233,1.52412,78801.0,78800.0,0.01269]
[1744124671430,0.35269,78800.0,78799.0,0.002]
[1744124671753,0.49348949,78800.0,78799.0,0.002]
[1744124671963,0.49348949,78800.0,78781.0,0.012693]
[1744124671964,0.34,78786.0,78782.0,0.253864]
[1744124672193,0.34,78784.0,78782.0,0.253864]
[1744124672395,0.34,78784.0,78782.0,0.266557]
[1744124672543,0.593865,78782.0,78781.0,0.00012588]
[1744124672745,0.606558,78782.0,78781.0,0.00012588]
[1744124673086,0.34,78782.0,78781.0,0.26668688]
[1744124674716,0.341,78782.0,78781.0,0.27268688]
[1744124674894,0.341,78782.0,78781.0,0.27968688]
[1744124676055,0.341,78782.0,78781.0,0.01312588]
[1744124676056,0.594865,78782.0,78781.0,0.01312588]
[1744124676262,0.607558,78782.0,78781.0,0.01312588]
[1744124677081,0.73381664,78782.0,78781.0,0.01312588]
[1744124678291,0.012697,78757.0,78751.0,0.0003358]
[1744124678501,0.34,78764.0,78760.0,0.012696]
[1744124678705,0.34,78766.0,78765.0,0.253919]
[1744124679217,0.34,78766.0,78763.0,0.012696]
[1744124679517,0.34,78766.0,78751.0,0.01315968]
[1744124679518,0.34,78757.0,78751.0,0.01315968]
[1744124679643,0.34,78757.0,78755.0,0.253952]
[1744124679843,0.34,78757.0,78751.0,0.00046168]
[1744124679844,0.606642,78757.0,78751.0,0.00046168]
[1744124680050,0.606659,78752.0,78751.0,0.00046168]
[1744124681116,0.606659,78752.0,78751.0,0.00946168]
[1744124681857,0.606659,78752.0,78751.0,0.01046168]
[1744124682163,0.606659,78752.0,78751.0,0.00146168]
[1744124682686,0.606659,78752.0,78751.0,0.00446168]
[1744124682888,0.34,78752.0,78751.0,0.25842668]
[1744124683098,0.34,78752.0,78751.0,0.26812468]